Cogmind - Beta 17 @@@ ROGUE MODE // 2026.07.25 @ 21:43:16 Player: 50l Result: Destroyed by S1-8FW(R) with Subdweller Laser Performance ------------- Evolutions (0) 0 Regions Visited (3) 600 Robots Destroyed (29) 145 Value Destroyed (683) 683 Prototype IDs (0) 0 Alien Tech Used (0) 0 Bonus (0) 0 TOTAL SCORE: 1428 Bonus ------- None Cogmind --------- Core Integrity 0/250 Matter 276/300 Energy 79/100 System Corruption 0% Temperature Cool (6) Movement Treading (240) Ox1 Location -10/Subcaves Parts ------- > --- POWER (1) -------- (None) > --- PROPULSION (2) --- Improved Treads > --- UTILITY (2) ------ Large Storage Unit Targeting Computer > --- WEAPON (2) ------- Subdweller Laser Heavy Assault Rifle > --- INVENTORY (15) --- Improved Treads Wheel Compact Wheel Subdweller Monowheel Subdweller Monowheel Subdweller Monowheel Huge Storage Unit Subdweller Optics Sensor Drone Bay Heavy Assault Rifle Heavy Assault Rifle Grenade Launcher Subdweller Shrapnel Launcher Peak State ------------ > --- POWER ------------ Light Nuclear Core > --- PROPULSION ------- Improved Treads Improved Treads > --- UTILITY ---------- Large Storage Unit Targeting Computer > --- WEAPON ----------- Subdweller Laser Heavy Assault Rifle > --- INVENTORY -------- Improved Treads Wheel Compact Wheel Subdweller Monowheel Subdweller Monowheel Subdweller Monowheel Huge Storage Unit Subdweller Optics Sensor Drone Bay Heavy Assault Rifle Heavy Assault Rifle Grenade Launcher Subdweller Shrapnel Launcher [Rating: 15] Favorites ----------- Power Light Ion Engine Engine Light Ion Engine Power Core Light Nuclear Core Propulsion Improved Treads Treads Improved Treads Flight Unit Flight Unit Utility Targeting Computer Storage Large Storage Unit Processor Targeting Computer Weapon Heavy Assault Rifle Energy Gun Small Laser Ballistic Gun Heavy Assault Rifle Build | -11 -10 -10 -10 ------- Run | Yrd Mat Min Sub Slots Evolved . | . . . . Power . | . . . . Propulsion . | . . . . Utility . | . . . . Weapon . | . . . . Parts Attached 22 | 6 12 . 4 Power 3 | 1 1 . 1 Engine 2 | 1 1 . . Core 1 | . . . 1 Reactor . | . . . . Propulsion 9 | 2 6 . 1 Treads 5 | 2 2 . 1 Leg . | . . . . Wheel . | . . . . Hover . | . . . . Flight 4 | . 4 . . Utility 3 | 1 2 . . Device . | . . . . Storage 2 | 1 1 . . Processor 1 | . 1 . . Hackware . | . . . . Protection . | . . . . Artifact . | . . . . Weapon 7 | 2 3 . 2 Energy Gun 2 | 1 . . 1 Energy Cannon . | . . . . Ballistic Gun 5 | 1 3 . 1 Ballistic Cannon . | . . . . Launcher . | . . . . Special Weapon . | . . . . Impact Weapon . | . . . . Slashing Weapon . | . . . . Piercing Weapon . | . . . . Special Melee Weapon . | . . . . Unidentified Prototypes . | . . . . Parts Lost 9 | . 4 . 5 Power 3 | . 1 . 2 Propulsion 3 | . 1 . 2 Utility . | . . . . Weapon 3 | . 2 . 1 Highest Loss Streak 3 | . 3 . 2 To Critical Strikes . | . . . . Average Backups 9 | 1 5 9 12 Power 1 | . 1 1 . Propulsion 4 | . 3 4 5 Utility 1 | . . 1 2 Weapon 2 | . . 3 2 Tool/Special . | . . . . Unused Backups 14 | . 2 . 12 Power . | . . . . Propulsion 8 | . 2 . 6 Utility 3 | . . . 3 Weapon 3 | . . . 3 Tool/Special . | . . . . Average Slot Usage (%) 93 | . 81 100 99 Engine 11 | . 7 14 13 Treads 25 | . 21 28 27 Flight 1 | . 5 . . Storage 14 | . 14 14 14 Processor 12 | . 10 14 14 Energy Gun 2 | . 5 . . Ballistic Gun 23 | . 15 28 26 Peak Build Rating 15 | 6 12 13 15 Average Rating 10 | 4 7 12 12 On Entrance 7 | . 6 12 13 Avg Prop Armor Cover (%) . | . . . . Naked Turns . | . . . . Heaviest Build 32 | 11 29 29 32 Greatest Support 46 | 40 46 46 46 Greatest Overweight (x) 1 | . 1 . . Average Overweight (x) . | . . . . Largest Inventory Capacity 15 | 8 15 15 15 Average Capacity 12 | 6 9 15 15 Most Carried 14 | 3 9 10 14 Average Carried 9 | 1 5 9 12 Final Capacity 15 | 8 15 15 15 Final Carried 13 | 3 9 10 13 Class Distribution -------------------- 100% | Mutant Dominant Class ---------------- Mutant | -10/Materials Mutant | -10/Mines Mutant | -10/Subcaves Resources | -11 -10 -10 -10 ----------- Run | Yrd Mat Min Sub Matter Collected 709 | 225 235 46 203 Remotely . | . . . . Salvage Created 825 | . 380 46 399 Parts 66 | . 33 8 25 Haulers Intercepted 1 | . 1 . . Recyclers Shooed 1 | . . 1 . Parts Field Recycled . | . . . . Retrieved Matter . | . . . . Parts Self-Destructed 24 | . . . 24 Prevented . | . . . . Parts Restored . | . . . . Kills | -11 -10 -10 -10 ------- Run | Yrd Mat Min Sub Combat Hostiles Destroyed 24 | . 10 3 11 Guns 24 | . 10 3 11 Classes Destroyed 7 | . 5 . 2 Worker 1 | . 1 . . Hauler 1 | . 1 . . Turret 2 | . . . 2 Watcher 1 | . 1 . . Swarmer 12 | . 5 3 4 Grunt 7 | . 5 . 2 Subdweller 5 | . . . 5 Best Kill Streak 6 | . 6 3 3 Combat Bots Only 5 | . 5 3 3 Max Kills in Single Turn 2 | . 1 2 1 Gunslinging 1 | . . 1 . Exploded . | . . . . Melee . | . . . . Uniques/NPCs Destroyed . | . . . . Combat | -11 -10 -10 -10 -------- Run | Yrd Mat Min Sub Hostile Shots Fired 189 | . 101 4 84 Missed 58 | . 29 1 28 Hits 131 | . 72 3 56 Projectile 131 | . 72 3 56 AOE 1 | . . . 1 Critical Strikes 1 | . . . 1 Damage Taken 1555 | . 748 26 781 Core 259 | . 151 . 108 Absorbed by Shields . | . . . . Core Remaining (%) 100 | 100 . . . Volleys Fired 85 | . 44 2 39 Largest 2 | . 2 2 2 Hottest 83 | . 60 46 83 Shots Fired 156 | . 75 4 77 Gun 156 | . 75 4 77 Cannon . | . . . . Launcher . | . . . . Special . | . . . . Kinetic 121 | . 49 4 68 Thermal 35 | . 26 . 9 Explosive . | . . . . Electromagnetic . | . . . . Robot Hit Streak 24 | . 11 2 24 Robot Miss Streak 4 | . 4 1 4 Penetration Max . | . . . . Secondary Targets 4 | . . 2 2 Max Gunslinging Chain 1 | . . 1 1 Shots Hit Robots 108 | . 49 3 56 Core Hits 48 | . 22 3 23 Critical Kills 1 | . . . 1 Critical Parts Destroyed . | . . . . Critical Strikes 1 | . . . 1 Destroy 1 | . . . 1 Melee Attacks . | . . . . Impact . | . . . . Slashing . | . . . . Piercing . | . . . . Sneak Attacks . | . . . . Combat Hostiles . | . . . . Follow-up Attacks . | . . . . Damage Inflicted 1608 | . 625 51 932 Guns 1604 | . 625 47 932 Cannons . | . . . . Explosions . | . . . . Melee . | . . . . Ramming 4 | . . 4 . Kinetic 1228 | . 440 47 741 Thermal 376 | . 185 . 191 Explosive . | . . . . Electromagnetic . | . . . . Impact . | . . . . Slashing . | . . . . Piercing . | . . . . Highest Corruption . | . . . . Average Corruption . | . . . . Corruption Purged . | . . . . Corruption Blocked . | . . . . Overload Shots . | . . . . Overflow Damage 39 | . 39 . . Projectiles . | . . . . Explosions 39 | . 39 . . Melee . | . . . . Knockbacks . | . . . . Impact . | . . . . Kinetic . | . . . . Secondary . | . . . . Self-Inflicted Damage 73 | . 73 . . Shots 1 | . 1 . . Rammed 1 | . . 1 . Targets Rammed 1 | . . 1 . Kicked . | . . . . Crushed . | . . . . Highest Temperature 50 | . 50 . . Average Temperature 16 | . 16 . . Received Heat Transfer 387 | . 192 . 195 Siege Activations . | . . . . Martial Activations . | . . . . Shielding Activations . | . . . . Robots Disrupted . | . . . . Combat Hostiles . | . . . . Robots Corrupted . | . . . . Combat Hostiles . | . . . . Parts Fried . | . . . . Impact Corruptions . | . . . . Robots Melted . | . . . . Combat Hostiles . | . . . . Parts Melted 1 | . . . 1 Heat Transferred 650 | . 425 . 225 Parts Sabotaged . | . . . . Parts Stolen . | . . . . Parts Stripped . | . . . . Power Chain Reactions . | . . . . Alert | -11 -10 -10 -10 ------- Run | Yrd Mat Min Sub Maximum Alert Level . | . . . . Low Security (%) 100 | 100 100 100 . Level 1 . | . . . . Level 2 . | . . . . Level 3 . | . . . . Level 4 . | . . . . Level 5 . | . . . . High Security . | . . . . Max Security . | . . . . Peak Influence 161 | . 161 119 . Initial 49 | . . 49 . Average 68 | . 82 53 . Influence Increases 725 | . 430 70 225 Destroy 0b10 Robot/C 420 | . 200 60 160 Destroy 0b10 Robot/NC 15 | . 15 . . Destroy Leader 74 | . 44 10 20 Successful Hack 56 | . 56 . . Disable Machine 30 | . 30 . . Destroy Structure 10 | . 10 . . Lose Combat Pursuer 120 | . 75 . 45 Influence Decreases 725 | . 301 199 225 Entered New Map 80 | . . 80 . Time Decay 594 | . 270 119 205 Lost Part 51 | . 31 . 20 Squads Dispatched 2 | . 2 . . Investigation 2 | . 2 . . Extermination . | . . . . Reinforcement . | . . . . Assault . | . . . . Garrison . | . . . . Intercept . | . . . . Searches Triggered . | . . . . Construction Impeded . | . . . . Haulers Reinforced . | . . . . Active Scanning Responses . | . . . . Cargo Convoy Interrupts . | . . . . Stealth | -11 -10 -10 -10 --------- Run | Yrd Mat Min Sub Distress Signals 1 | . 1 . . Communications Jammed . | . . . . Distress Signals . | . . . . Times Spotted 41 | . 23 2 16 Peak Tracking Total 5 | . 5 2 3 Tactical Retreats 5 | . 3 . 2 Traps | -11 -10 -10 -10 ------- Run | Yrd Mat Min Sub Traps Triggered 3 | . 3 . . Indirectly . | . . . . Trap Hack Attempts . | . . . . Triggered . | . . . . Disarmed . | . . . . Reprogrammed . | . . . . Reused . | . . . . Traps Extracted . | . . . . Installed . | . . . . Triggered . | . . . . Machines | -11 -10 -10 -10 ---------- Run | Yrd Mat Min Sub Machines Disabled 2 | . 2 . . Max in Single Turn 2 | . 2 . . Machines Repaired . | . . . . Machines Dismantled . | . . . . Machines Sabotaged . | . . . . Overloaded Fab Kills . | . . . . Hacking | -11 -10 -10 -10 --------- Run | Yrd Mat Min Sub Machines Accessed 8 | . 6 2 . Terminals 7 | . 6 1 . Fabricators . | . . . . Repair Stations . | . . . . Recycling Units . | . . . . Scanalyzers . | . . . . Garrison Access . | . . . . Total Hacks 25 | . 22 3 . Successful 15 | . 14 1 . Failed 10 | . 8 2 . Catastrophic . | . . . . Database Lockouts . | . . . . Manual 20 | . 20 . . Terminals 24 | . 22 2 . Fabricators . | . . . . Repair Stations . | . . . . Recycling Units . | . . . . Scanalyzers . | . . . . Garrison Access . | . . . . Terminal Hacks 5 | . 4 1 . Robot Analysis 4 | . 4 . . Open Door 1 | . . 1 . Fabricator Hacks . | . . . . Repair Station Hacks . | . . . . Recycling Unit Hacks . | . . . . Scanalyzer . | . . . . Garrison Access Hacks . | . . . . Unauthorized Hacks 10 | . 10 . . Terminals 10 | . 10 . . Botnet 5 | . 5 . . Skim 5 | . 5 . . Fabricators . | . . . . Repair Stations . | . . . . Recycling Units . | . . . . Scanalyzers . | . . . . Garrison Access . | . . . . Data Cores Recovered . | . . . . Used . | . . . . Hacking Detections 7 | . 6 1 . Full Trace Events . | . . . . Feedback Events . | . . . . Feedback Blocked . | . . . . Robot Schematics Acquired . | . . . . Robots Built . | . . . . Authchips . | . . . . Time . | . . . . Total Robot Build Rating . | . . . . Part Schematics Acquired . | . . . . Parts Built . | . . . . Authchips . | . . . . Time . | . . . . Total Part Build Rating . | . . . . Part Studies Acquired . | . . . . Parts Repaired . | . . . . Time . | . . . . Parts Recycled . | . . . . Recycled Matter . | . . . . Retrieved Matter . | . . . . Retrieved Components . | . . . . Parts Scanalyzed . | . . . . Part Schematics Acquired . | . . . . Parts Damaged . | . . . . Bothacking | -11 -10 -10 -10 ------------ Run | Yrd Mat Min Sub Used RIF Installer . | . . . . Robots Hacked . | . . . . Non-combat . | . . . . Combat . | . . . . Robot Hacks Applied . | . . . . Relay Couplers Released . | . . . . Fabnet Peak Effective % . | . . . . Robots Rewired . | . . . . Allies Hacked . | . . . . Hacks Repelled . | . . . . Allies | -11 -10 -10 -10 -------- Run | Yrd Mat Min Sub Total Allies . | . . . . Largest Group . | . . . . Highest-Rated Group . | . . . . Highest-Rated Ally . | . . . . Total Orders . | . . . . Ally Attacks . | . . . . Total Damage . | . . . . Kills . | . . . . Allies Corrupted . | . . . . Allies Melted . | . . . . Intel | -11 -10 -10 -10 ------- Run | Yrd Mat Min Sub Active Infowar (turns) . | . . . . Robot Analysis Total 4 | . 4 . . Derelict Logs Recovered 3 | . . 2 1 Drone Launches . | . . . . Drone Recoveries . | . . . . Exploration | -11 -10 -10 -10 ------------- Run | Yrd Mat Min Sub Turns Passed 2120 | 82 667 282 1089 Spaces Moved 1255 | 45 497 171 542 Core 1 | 1 . . . Treads 1010 | 44 253 171 542 Legs . | . . . . Wheels . | . . . . Hover . | . . . . Flight 244 | . 244 . . Fastest Speed 37 | 50 37 160 160 Average Speed 136 | 157 99 160 160 Slowest Speed 160 | 160 160 160 160 Overloaded Moves . | . . . . Propulsion Burnouts . | . . . . Robots Hopped 4 | . 4 . . Potential Cave-ins . | . . . . Cave-ins Triggered . | . . . . Exploration Rate (%) 40 | 3 96 35 26 Regions Visited 3 Branch Regions 2 Pre-discovered Areas 1 | . . 1 . Known Exits Taken 2 | . 1 1 . Unknown Exits Taken 1 | 1 . . . Scrap Searched . | . . . . Spaces Dug . | . . . . Terrain Destroyed 8 | . 8 . . Melee . | . . . . Projectile . | . . . . AOE 8 | . 8 . . Terrain Rammed . | . . . . Walls Destroyed . | . . . . Machines Disabled . | . . . . Actions | -11 -10 -10 -10 --------- Run | Yrd Mat Min Sub Total 1506 | 53 591 175 687 Wait 117 | . 20 1 96 Move 1244 | 44 488 170 542 Hop 4 | . 4 . . Pick Up 21 | 3 11 1 6 Fast Attach 15 | 6 9 . . Attach 4 | . 1 . 3 Detach . | . . . . Swap 5 | . 4 . 1 Drop 10 | . 10 . . Fire 85 | . 44 2 39 Melee . | . . . . Ram . | . . . . Kick . | . . . . Crush 1 | . . 1 . Escape Stasis . | . . . . Rewire . | . . . . Trap . | . . . . Miscellaneous . | . . . . Route ------- -11/Scrapyard -10/Materials (discovered 6 exits: [*Mat x3] / *Min x2 / Sub) -10/Mines (discovered 2 exits: [*Mat] / *Sub) -10/Subcaves (discovered 3 exits: [*Mat] / [*Rec] / [*Scr]) History --------- Turn | Location | Event 7 | -11/Scrapyard | Discovered new exit (range 16) 83 | -11/Scrapyard | Entered Materials 195 | -10/Materials | Discovered new exit (range 14) 317 | -10/Materials | Build established: Mutant 380 | -10/Materials | Discovered new exit (range 12) 400 | -10/Materials | Lost 3 parts (1n2w) 448 | -10/Materials | Discovered new exit (range 9) 492 | -10/Materials | Discovered new exit (range 16) 503 | -10/Materials | Learned 2 Storage zone layouts 543 | -10/Materials | Core integrity fell below 50% 546 | -10/Materials | Identified exit to Subcaves 580 | -10/Materials | Identified exit to Mines 620 | -10/Materials | Loaded intel: 12 trap records 624 | -10/Materials | Loaded intel: 8 terminal locations 625 | -10/Materials | Loaded intel: 2 recycling unit locations 669 | -10/Materials | Learned Storage emergency access door positions 750 | -10/Materials | Entered Mines 760 | -10/Mines | Discovered new exit (range 12) 776 | -10/Mines | Learned Materials garrison access intel 782 | -10/Mines | Discovered exit to Subcaves (range 8) 784 | -10/Mines | Met a Derelict bent on vengeance 823 | -10/Mines | Found the Drone Emporium 831 | -10/Mines | Found Prototype Device 942 | -10/Mines | Assembled infested the area 946 | -10/Mines | Learned location of Zion (-6) 1032 | -10/Mines | Entered Subcaves 1033 | -10/Subcaves | Approached by a straggling Scientist 1042 | -10/Subcaves | Discovered new exit (range 14) 1142 | -10/Subcaves | Learned 4 Materials zone layouts 1293 | -10/Subcaves | Discovered new exit (range 6) 1562 | -10/Subcaves | Scientist uncovered a shortcut to Scraptown 1883 | -10/Subcaves | Shifting Twisted Machinery released Sub. Laser 1893 | -10/Subcaves | Shifting Twisted Machinery released Riot Gun 2105 | -10/Subcaves | Core integrity fell below 20% 2121 | -10/Subcaves | Destroyed by S1-8FW(R) with Subdweller Laser Last Messages --------------- 01854_ G-47 Trooper destroyed. 01854_ Switching to secondary target: G-34 Mercenary. 01857_ G-34 Mercenary destroyed. 01860_ Acquired 18 matter. 01864_ Aluminum Leg fries itself beyond repair. Sub. Laser falls loose from the Twisted Machinery. Riot Gun falls loose from the Twisted Machinery. 02046_ 36-H67(R): "SUBSUUUUUB!" 02063_ Lgt. Ion Engine destroyed. 02063_ 36-H67(R) destroyed. 02065_ Acquired 8 matter. 02068_ Acquired Sub. Shrapnel Launcher. 02102_ Imp. Treads destroyed. 02107_ Sub. Power Source melted. 02107_ LZ-LFN(R) destroyed. 02107_ Lgt. Nuclear Core destroyed. 02114_ Subatomizers dissect the Sub. Monowheel. Map ----- +----------------------------------------------------+ | &% """"" ### ##?# ##?????????????? | | ! ##??# ###???????????? | | ####### ### #???# ##??????????? | | ##?????# #?# ##### #??????????? | | #??????# ##?## ## #??????????? | | #??????# ##???# #### #### #??????????? | | ???????## ##????# ### ##??###??????????? | | ????????###????## ### ##??????????????? | | ??????????????## #?# ##?????????????? | | ??????????##### ####?# #?????????????? | | ??????????# ##????## #????????????? | | ?????????## ##?????## #???????????? | | ?????????# ##?????## #??????????? | | ?????????## #?????###### #?????????? | | ??????????# #???? ##?# #?????????? | | ??????????## ### #???? ##?###?????????? | | ???????????## ###?###???? #?????????????? | | ????????????## #"#??????? #?????????????? | | ???????##???## ##??????? ####??????????? | | ???????#" ###"" #??????# #??????????? | | ?????# ## # ##" "##????## ???????????? | | ?????# " " "" "#????## ??????????????? | | ?????# &%& "###### #?????????????????? | | ?????# ; ; ## ! ##????????????????? | | ??# ;;;; R%& #????????????????? | | ??# ####; @# ##????????????????? | | ??## ??### ### ##?????????????????? | | ???## ????# #?? #?????????????????? | | ????# ????# #??? #?????????????????? | | ????# #???# ### ##??? ?????????????????? | | ??? ##???# ##?###????? ????????????????? | | ?? ##?????####?????????? ???????????????? | | ? #?????????????????????? ??????????????? | | ? #???????????????????????# ?????????????? | | ?? ?????????????????????????# ????????????? | | ???? ???????????????????????????# ?????????????? | | ?????????????????????????????????????????????????? | | ?????????????????????????????????????????????????? | | ?????????????????????????????????????????????????? | | ?????????????????????????????????????????????????? | | ?????????????????????????????????????????????????? | | ?????????????????????????????????????????????????? | | ?????????????????????????????????????????????????? | | ?????????????????????????????????????????????????? | | ?????????????????????????????????????????????????? | | ?????????????????????????????????????????????????? | | ?????????????????????????????????????????????????? | | ?????????????????????????????????????????????????? | | ?????????????????????????????????????????????????? | | ?????????????????????????????????????????????????? | +----------------------------------------------------+ Best States ------------- Heat Dissipation 25 Energy Generation 14 Energy Capacity 160 Matter Stores 300 Matter Capacity 300 Sight Range 16 Terrain Scan Density 10 Evasion (%) 62 Targeting Accuracy 5 Recoil Reduction 2 Item Schematics ----------------- None Robot Schematics ------------------ None Fabricated ------------ Nothing Repaired ---------- Nothing Studied --------- None Alien Tech Used ----------------- None Achievements -------------- Nice Directions, Buddy Challenges ------------ None Game ------ Seed SpikedSalvageBlaster Manual? 0 Play Time 00:17:52 Cumulative 354.2 hours Start 2026.07.25 @ 21:27:40 End 2026.07.25 @ 21:43:16 Sessions 1 Manual Loads 0 Difficulty Rogue Special Mode None Game No. 205 Rogue 131 Adventurer 74 Explorer 0 Win Type - Total 17 Types 14/0/0/3/0/0/0/0/0/0 Lore% 74 Gallery% 68 Achievement% 53 Wizard Run 0 Options --------- Layout 2 ASCII 0 Keyboard 0 Movement Mouse Keybinds 0 Fullscreen 1 Font 32/SmallcapsGlow Map View 50x44 Zoom Use 0% Tactical HUD 1 Map Filters NONE Filters NONE Steam 1 RUN: f966311f-acc0-4ae8-9ac3-73a3f999a3b5